bitfinex/quotes_BTCUSD_20250218
["timestamp","ask_amount","ask_price","bid_price","bid_amount"]
[1739890632391,0.29411259,95930.0,95929.0,0.00047206]
[1739890632871,0.32005736,95930.0,95929.0,0.00047206]
[1739890633105,0.19864736,95930.0,95929.0,0.00047206]
[1739890633349,4.06779508,95930.0,95929.0,0.00047206]
[1739890633593,6.74647501,95930.0,95929.0,0.00047206]
[1739890633850,7.22789201,95930.0,95929.0,0.00047206]
[1739890634011,6.84407166,95930.0,95929.0,0.00047206]
[1739890635300,6.74156801,95930.0,95929.0,0.00047206]
[1739890635571,6.54907336,95930.0,95929.0,0.00047206]
[1739890635833,0.22444736,95930.0,95929.0,0.00047206]
[1739890636128,0.34804736,95930.0,95929.0,0.00047206]
[1739890636323,0.37104736,95930.0,95929.0,0.00047206]
[1739890636592,0.71803001,95930.0,95929.0,0.00047206]
[1739890636824,0.79493001,95930.0,95929.0,0.00047206]
[1739890637054,0.15639,95914.0,95874.0,0.0779]
[1739890637283,4.044565,95914.0,95874.0,0.0779]
[1739890637529,4.277568,95914.0,95880.0,0.156445]
[1739890637791,3.326986,95914.0,95879.0,0.156446]
[1739890638016,3.71416081,95914.0,95866.0,0.1243]
[1739890638240,3.66075716,95914.0,95866.0,0.0752]
[1739890638479,3.66599483,95914.0,95870.0,0.208615]
[1739890638732,3.66599483,95914.0,95868.0,0.156464]
[1739890638972,3.68233916,95914.0,95874.0,0.156455]
[1739890639241,3.68233916,95914.0,95874.0,0.208605]
[1739890639242,3.65017165,95914.0,95874.0,0.208605]
[1739890639485,3.65017165,95914.0,95877.0,0.15645]
[1739890639719,3.65017165,95914.0,95871.0,0.208613]
[1739890640168,3.65017165,95914.0,95879.0,0.156447]
[1739890640170,3.65017165,95914.0,95877.0,0.2086]
[1739890640433,0.01634433,95914.0,95883.0,0.075]
[1739890640684,0.17273433,95914.0,95901.0,0.208546]
[1739890641133,0.01634433,95914.0,95901.0,0.208546]
[1739890641358,0.01634433,95914.0,95884.0,0.49122183]
[1739890641359,0.01634433,95914.0,95909.0,0.156398]
[1739890641587,0.17273433,95914.0,95904.0,0.156404]
[1739890641850,0.17273433,95914.0,95913.0,0.0072751]
[1739890642077,0.01634433,95914.0,95913.0,0.0003404]
[1739890642309,0.17273433,95914.0,95913.0,0.0003404]
[1739890642814,0.34750135,95914.0,95913.0,0.0003404]
[1739890643014,0.3298573,95914.0,95913.0,0.0003404]
[1739890643624,0.28393,95914.0,95913.0,0.0003404]
[1739890643856,0.461633,95914.0,95913.0,0.0003404]
[1739890644055,0.592787,95914.0,95913.0,0.0003404]
[1739890644301,0.496743,95914.0,95913.0,0.0003404]
[1739890644511,0.208497,95925.0,95913.0,0.0003404]
[1739890644716,0.156378,95921.0,95913.0,0.0003404]
[1739890644962,0.156378,95921.0,95914.0,0.03652614]
[1739890645179,0.156388,95915.0,95914.0,0.00693485]
[1739890645396,0.2848052,95930.0,95914.0,0.00693485]
[1739890645611,0.2848052,95930.0,95913.0,0.0003404]
[1739890645612,0.231489,95928.0,95913.0,0.0003404]
[1739890645799,0.156383,95918.0,95915.0,0.00693241]
[1739890645998,0.156383,95918.0,95913.0,0.0003404]
[1739890646130,0.023,95928.0,95913.0,0.0003404]
[1739890646338,0.208511,95918.0,95914.0,0.00693485]
[1739890646541,0.156388,95915.0,95914.0,0.00693485]
[1739890646748,0.15639,95914.0,95913.0,0.0003404]
[1739890646990,1.302876,95914.0,95913.0,0.0003404]
[1739890647401,1.42837965,95914.0,95913.0,0.0003404]
[1739890647705,2.26064811,95914.0,95913.0,0.0003404]
[1739890647881,5.08906346,95914.0,95913.0,0.0003404]
[1739890648089,4.98243246,95914.0,95913.0,0.0003404]
[1739890648271,4.81754711,95914.0,95913.0,0.0003404]
[1739890649809,4.84971462,95914.0,95913.0,0.0003404]
[1739890650009,0.173,95913.0,95873.0,0.0003404]
[1739890650157,0.21942184,95890.0,95874.0,0.10250365]
[1739890650362,0.20987372,95889.0,95875.0,0.00702617]
[1739890650559,0.208574,95889.0,95876.0,0.12915016]
[1739890650781,0.023,95888.0,95877.0,0.00702129]
[1739890650977,0.208578,95888.0,95877.0,0.00702129]
[1739890651241,0.01634429,95889.0,95873.0,0.00047226]
[1739890651459,0.156438,95885.0,95878.0,0.00701884]
[1739890651657,0.01634429,95889.0,95879.0,0.13975856]
[1739890651895,0.01634429,95889.0,95880.0,0.208594]
[1739890652127,0.01634429,95889.0,95881.0,0.10250365]
[1739890652367,0.01634429,95889.0,95884.0,0.156438]
[1739890652585,0.01634429,95889.0,95884.0,0.18303488]
[1739890652766,0.01634429,95889.0,95885.0,0.00701736]
[1739890653213,0.01634429,95889.0,95885.0,0.16345336]
[1739890653412,0.156424,95894.0,95885.0,0.16345336]
[1739890653629,0.156426,95892.0,95886.0,0.10250365]
[1739890653762,0.156428,95891.0,95886.0,0.10250365]
[1739890653963,0.156432,95888.0,95887.0,0.00701247]
[1739890654167,0.00129972,95899.0,95873.0,0.00047226]
[1739890654370,0.208539,95905.0,95874.0,0.10250365]
[1739890654616,0.023,95904.0,95888.0,0.156431]
[1739890654832,0.681668,95904.0,95877.0,0.00104289]
[1739890654984,0.21942184,95900.0,95889.0,0.00700588]
[1739890655185,0.156432,95889.0,95878.0,0.10250365]
[1739890655443,0.156433,95888.0,95878.0,0.10250365]
[1739890655644,0.156433,95888.0,95879.0,0.16348523]
[1739890655839,0.21942184,95900.0,95885.0,0.156437]
[1739890656121,0.208555,95898.0,95884.0,0.208585]
[1739890656331,0.208535,95907.0,95886.0,0.13612308]
[1739890656543,0.15526043,95909.0,95886.0,0.13612308]
[1739890656544,0.156423,95894.0,95886.0,0.10250365]
[1739890656749,0.208559,95897.0,95887.0,0.0070189]
[1739890656952,0.156427,95891.0,95887.0,0.10250365]
[1739890657174,0.156432,95888.0,95887.0,0.10250365]
[1739890657382,0.023,95899.0,95865.0,0.23363783]
[1739890657587,0.21942184,95890.0,95876.0,0.15645]
[1739890657814,0.21942184,95890.0,95877.0,0.10250365]
[1739890658008,0.20987372,95889.0,95877.0,0.10250365]
[1739890658223,0.20987372,95889.0,95878.0,0.0003404]
[1739890658224,0.156447,95879.0,95878.0,0.0003404]
[1739890658865,0.156446,95880.0,95878.0,0.0003404]
[1739890659099,0.156447,95879.0,95878.0,0.0003404]
[1739890660686,0.208589,95883.0,95878.0,0.0003404]
[1739890660894,0.156438,95885.0,95878.0,0.0003404]
[1739890661104,0.01634439,95887.0,95879.0,0.10250365]
[1739890661306,0.156445,95881.0,95880.0,0.0070355]
[1739890661507,0.01900537,95881.0,95878.0,0.0003404]
[1739890661729,0.156441,95883.0,95878.0,0.0003404]
[1739890661976,0.156441,95883.0,95879.0,0.00703794]
[1739890662174,0.156443,95881.0,95879.0,0.00703794]
[1739890662379,0.156445,95880.0,95878.0,0.0003404]
[1739890662610,0.03509739,95887.0,95878.0,0.0003404]
[1739890662762,0.156447,95879.0,95878.0,0.0003404]
[1739890662981,0.01634439,95887.0,95878.0,0.0003404]
[1739890663185,0.156444,95881.0,95878.0,0.0003404]
[1739890663604,0.01866448,95887.0,95879.0,0.00703794]
[1739890663808,0.156447,95879.0,95878.0,0.0003404]
[1739890664010,0.156445,95881.0,95878.0,0.0003404]
[1739890664207,0.21942184,95900.0,95879.0,0.10250365]
[1739890664661,0.208552,95899.0,95882.0,0.15644]
[1739890664861,0.208554,95898.0,95882.0,0.15644]
[1739890665066,0.156422,95895.0,95884.0,0.156438]
[1739890665272,0.21942184,95900.0,95883.0,0.10250365]
[1739890665498,1.047695,95899.0,95883.0,0.10250365]
[1739890665642,0.156429,95890.0,95883.0,0.10250365]
[1739890665855,0.156437,95885.0,95883.0,0.10250365]
[1739890666058,0.23858542,95900.0,95883.0,0.10250365]
[1739890666059,0.208574,95889.0,95883.0,0.10250365]
[1739890666583,0.156434,95887.0,95883.0,0.10250365]
[1739890667000,0.208579,95887.0,95883.0,0.10250365]
[1739890667205,0.01634405,95890.0,95878.0,0.0003404]
[1739890667414,0.156447,95879.0,95878.0,0.0003404]
[1739890668469,0.15774672,95879.0,95878.0,0.0003404]
[1739890668680,0.17409325,95879.0,95878.0,0.0003404]
[1739890668886,2.30605025,95879.0,95878.0,0.0003404]
[1739890669100,2.30475053,95879.0,95878.0,0.0003404]
[1739890669511,2.28364853,95879.0,95878.0,0.0003404]
[1739890669732,1.79991418,95879.0,95878.0,0.0003404]
[1739890669952,2.46035018,95879.0,95878.0,0.0003404]
[1739890670157,5.24073418,95879.0,95878.0,0.0003404]
[1739890670370,4.56679218,95879.0,95878.0,0.0003404]
[1739890670815,4.59895969,95879.0,95878.0,0.0003404]
[1739890671442,4.70146334,95879.0,95878.0,0.0003404]
[1739890672089,4.78296334,95879.0,95878.0,0.0003404]
[1739890672301,0.306455,95874.0,95857.0,0.0003406]
[1739890672512,7.1128223,95874.0,95857.0,0.0003406]
[1739890672723,4.55132165,95874.0,95857.0,0.0003406]
[1739890672851,4.27703416,95874.0,95857.0,0.0003406]
[1739890673058,8.41808516,95874.0,95857.0,0.0003406]
[1739890673411,8.09054416,95874.0,95857.0,0.0003406]
[1739890673605,0.156481,95858.0,95857.0,0.0003406]
[1739890673810,2.991885,95858.0,95857.0,0.00078012]
[1739890674041,3.146607,95858.0,95857.0,0.00078012]
[1739890674228,2.990251,95858.0,95857.0,0.00078012]
[1739890675045,2.913032,95858.0,95857.0,0.00078012]
[1739890675445,2.33146,95858.0,95857.0,0.00078012]
[1739890675970,0.28198465,95858.0,95857.0,0.00078012]
[1739890676172,4.79966865,95858.0,95857.0,0.00078012]
[1739890676375,4.61161365,95858.0,95857.0,0.00078012]
[1739890676537,4.16292,95858.0,95857.0,0.00078012]
[1739890676938,4.072815,95858.0,95857.0,0.00078012]
[1739890677096,3.39448634,95858.0,95857.0,0.00078012]
[1739890678110,3.39982937,95858.0,95857.0,0.00078012]
[1739890678324,3.50233302,95858.0,95857.0,0.00078012]
[1739890678744,3.58230053,95858.0,95857.0,0.00078012]
[1739890679162,3.55013302,95858.0,95857.0,0.00078012]
[1739890679793,3.58230053,95858.0,95857.0,0.00078012]
[1739890680390,4.06100053,95858.0,95857.0,0.00078012]
[1739890681659,4.02883302,95858.0,95857.0,0.00078012]
[1739890681882,4.13133667,95858.0,95857.0,0.00078012]
[1739890682800,2.99952803,95858.0,95857.0,0.00078012]
[1739890683001,2.29631203,95858.0,95857.0,0.00078012]
[1739890684328,3.05414668,95858.0,95857.0,0.00078012]
[1739890684963,0.15652,95834.0,95833.0,0.0003402]
[1739890685379,0.15781972,95834.0,95833.0,0.0003402]
[1739890685585,2.181702,95834.0,95833.0,0.0003402]
[1739890685784,2.282091,95834.0,95833.0,0.0003402]
[1739890686197,2.305091,95834.0,95833.0,0.0003402]
[1739890686401,0.19809748,95834.0,95833.0,0.0003402]
[1739890686563,3.1080982,95834.0,95833.0,0.0003402]
[1739890686766,2.66708348,95834.0,95833.0,0.0003402]
[1739890687179,2.6834374,95834.0,95833.0,0.0003402]
[1739890687405,2.5714944,95834.0,95833.0,0.0003402]
[1739890687794,2.34039792,95834.0,95833.0,0.1568622]
[1739890688132,0.33866401,95858.0,95833.0,0.1568622]
[1739890688133,0.156497,95848.0,95833.0,0.19867007]
[1739890688336,0.21942184,95843.0,95834.0,0.10250365]
[1739890688541,0.20868,95841.0,95834.0,0.00722791]
[1739890688745,0.156512,95840.0,95833.0,0.0804402]
[1739890688946,0.156509,95842.0,95835.0,0.00722546]
[1739890689149,0.156504,95844.0,95834.0,0.05183433]
[1739890689362,0.216272,95843.0,95836.0,0.00722302]
[1739890689554,0.371618,95844.0,95835.0,0.00722546]
[1739890689706,0.135835,95843.0,95842.0,0.156506]
[1739890690088,0.04260255,95858.0,95842.0,0.00720836]
[1739890690292,0.01960255,95858.0,95843.0,0.13434315]
[1739890690500,0.01960255,95858.0,95853.0,0.156488]
[1739890690702,0.01960255,95858.0,95847.0,0.208663]
[1739890690703,0.01960255,95858.0,95857.0,0.156483]
[1739890690906,0.01960255,95858.0,95857.0,0.25898665]
[1739890691121,0.00043898,95858.0,95857.0,0.34266453]
[1739890692075,0.00043898,95858.0,95857.0,0.38816453]
[1739890694008,0.00077958,95858.0,95857.0,0.53816453]
[1739890694413,0.00077958,95858.0,95857.0,0.10967536]
[1739890696219,0.00077958,95858.0,95857.0,0.26615836]
[1739890696423,0.00077958,95858.0,95857.0,0.10967536]
[1739890696631,0.00077958,95858.0,95857.0,0.00717171]
[1739890696632,0.15726058,95858.0,95857.0,0.00717171]
[1739890697035,0.00077958,95858.0,95840.0,0.0823]
[1739890697370,0.00077958,95858.0,95857.0,0.00713824]
[1739890697576,0.809805,95857.0,95835.0,0.0001703]
[1739890697783,0.156501,95847.0,95836.0,0.10250365]
[1739890698105,0.00129972,95848.0,95837.0,0.00719543]
[1739890698315,0.156507,95842.0,95838.0,0.10250365]
[1739890698519,0.208663,95848.0,95838.0,0.10969663]
[1739890698955,0.01635099,95857.0,95838.0,0.10969663]
[1739890699130,0.156509,95842.0,95838.0,0.10969663]
[1739890699537,0.156512,95839.0,95838.0,0.00719298]
[1739890699746,0.01879712,95842.0,95835.0,0.0001703]
[1739890699747,0.208681,95840.0,95835.0,0.0001703]
[1739890699953,0.156509,95841.0,95835.0,0.0001703]
[1739890700165,0.208678,95841.0,95835.0,0.0001703]
[1739890700366,0.156514,95838.0,95835.0,0.0001703]
[1739890701011,0.0174974,95842.0,95835.0,0.0001703]
[1739890701209,0.15,95856.0,95835.0,0.0001703]
[1739890701458,0.156517,95836.0,95835.0,0.0001703]
[1739890702694,0.208672,95844.0,95835.0,0.0001703]
[1739890702695,0.21942184,95860.0,95835.0,0.10267395]
[1739890702899,0.156502,95845.0,95836.0,0.10250365]
[1739890703109,0.208665,95848.0,95836.0,0.10250365]
[1739890703314,0.156502,95845.0,95837.0,0.06001076]
[1739890703524,0.156502,95845.0,95838.0,0.10250365]
[1739890703936,0.156502,95845.0,95839.0,0.00720388]
[1739890704202,0.01726225,95845.0,95839.0,0.10970753]
[1739890704618,0.20942158,95858.0,95839.0,0.10970753]
[1739890704619,0.00077958,95858.0,95840.0,0.10354696]
[1739890704831,0.15726058,95858.0,95848.0,0.156496]
[1739890705042,0.01782938,95858.0,95850.0,0.208659]
[1739890705247,0.01782938,95858.0,95851.0,0.10250365]
[1739890705655,0.01782938,95858.0,95852.0,0.04748441]
[1739890705893,0.00077958,95858.0,95857.0,0.156483]
[1739890706094,0.00077958,95858.0,95857.0,0.25898665]
[1739890706320,0.00077958,95858.0,95857.0,0.26614378]
[1739890706943,0.00077958,95858.0,95857.0,0.34274378]
[1739890708213,0.0090376,95881.0,95857.0,0.18626078]
[1739890708480,0.184378,95880.0,95858.0,0.15035871]
[1739890708691,1.724962,95888.0,95858.0,0.10965785]
[1739890708900,1.80127872,95887.0,95858.0,0.10250365]
[1739890709115,0.15646,95871.0,95858.0,0.10250365]
[1739890709322,0.208608,95874.0,95859.0,0.16363076]
[1739890709539,0.156458,95873.0,95860.0,0.31413177]
[1739890709748,0.156454,95875.0,95860.0,0.15765477]
[1739890709958,0.156453,95876.0,95862.0,0.156474]
[1739890710187,0.156453,95875.0,95863.0,0.10250365]
[1739890710406,0.156453,95875.0,95864.0,0.0422389]
[1739890710605,0.208602,95876.0,95865.0,0.10250365]
[1739890710816,0.00129972,95880.0,95865.0,0.10964075]
[1739890710965,0.156458,95873.0,95865.0,0.10964075]
[1739890711179,0.00129972,95879.0,95866.0,0.02661177]
[1739890711379,0.156468,95866.0,95865.0,0.0071371]
[1739890711579,0.15647,95865.0,95857.0,0.00013179]
[1739890711807,0.156466,95868.0,95858.0,0.10250365]
[1739890712010,0.00129972,95879.0,95858.0,0.10964799]
[1739890712162,0.156465,95869.0,95858.0,0.10964799]
[1739890712396,0.208583,95885.0,95859.0,0.03184328]
[1739890712639,0.21942184,95890.0,95858.0,0.10964799]
[1739890712640,0.133196,95880.0,95861.0,0.208635]
[1739890712840,1.062822,95888.0,95862.0,0.10250365]
[1739890713043,0.023,95887.0,95862.0,0.10250365]
[1739890713246,0.156458,95872.0,95862.0,0.10963982]
[1739890713454,0.156463,95869.0,95862.0,0.10250365]
[1739890713681,0.156471,95864.0,95863.0,0.00713372]
[1739890713891,0.156471,95864.0,95857.0,0.00013179]
[1739890713892,0.156477,95861.0,95857.0,0.00013179]
[1739890714103,0.0779,95879.0,95857.0,0.00013179]
[1739890714104,0.156481,95858.0,95857.0,0.00013179]
[1739890714509,0.208598,95878.0,95857.0,0.00013179]
[1739890714510,0.023,95877.0,95857.0,0.00013179]
[1739890714710,0.208604,95875.0,95857.0,0.00013179]
[1739890714913,0.156463,95870.0,95857.0,0.10263544]
[1739890715118,0.02133326,95880.0,95858.0,0.11991364]
[1739890715326,0.277125,95879.0,95862.0,0.156473]
[1739890715527,0.156455,95875.0,95859.0,0.208639]
[1739890715731,0.156455,95875.0,95858.0,0.11991364]
[1739890715732,0.15,95890.0,95863.0,0.10963789]
[1739890715932,0.15,95890.0,95863.0,0.10250365]
[1739890715933,0.156452,95876.0,95863.0,0.10250365]
[1739890716270,0.173,95889.0,95864.0,0.0071318]
[1739890716473,0.023,95887.0,95864.0,0.0071318]
[1739890716682,0.023,95879.0,95864.0,0.0071318]
[1739890716892,0.023,95879.0,95856.0,0.208644]
[1739890716893,0.156464,95869.0,95856.0,0.156484]
[1739890717098,0.156465,95869.0,95865.0,0.00712935]
[1739890717277,0.156465,95869.0,95858.0,0.10250365]
[1739890717415,0.156455,95875.0,95866.0,0.00712691]
[1739890717618,0.15646,95871.0,95866.0,0.00712691]
[1739890717827,0.023,95885.0,95858.0,0.10250365]
[1739890718023,0.156459,95872.0,95858.0,0.25898265]
[1739890718250,0.208583,95885.0,95860.0,0.208637]
[1739890718458,0.01634792,95886.0,95868.0,0.208619]
[1739890718459,0.134464,95884.0,95868.0,0.208619]
[1739890718696,0.156439,95884.0,95870.0,0.156461]
[1739890719058,0.156446,95880.0,95871.0,0.10250365]
[1739890719173,0.156446,95880.0,95871.0,0.10960743]
[1739890719578,0.0001702,95881.0,95871.0,0.10960743]
[1739890719798,0.0001702,95881.0,95872.0,0.03182324]
[1739890719994,0.0001702,95881.0,95873.0,0.25895965]
[1739890720251,0.0001702,95881.0,95873.0,0.10960255]
[1739890720850,0.208594,95880.0,95873.0,0.10960255]
[1739890721221,0.0001702,95881.0,95873.0,0.10960255]
[1739890721423,0.0001702,95881.0,95873.0,0.11360255]
[1739890721647,0.0001702,95881.0,95873.0,0.10960255]
[1739890721914,0.208596,95879.0,95873.0,0.10960255]
[1739890722158,0.0001702,95881.0,95873.0,0.10960255]
[1739890722358,0.15645,95877.0,95873.0,0.10960255]
[1739890722569,0.156455,95874.0,95873.0,0.10960255]
[1739890722777,0.0001702,95881.0,95873.0,0.0070989]
[1739890722941,0.156459,95872.0,95858.0,0.1568204]
[1739890723140,0.156459,95872.0,95859.0,0.13906337]
[1739890723628,0.2086,95877.0,95873.0,0.004]
[1739890723818,0.0001702,95881.0,95873.0,0.004]
[1739890723992,0.0001702,95881.0,95859.0,0.10250365]
[1739890724195,0.156446,95880.0,95867.0,0.156466]
[1739890724442,0.156446,95880.0,95868.0,0.11815025]
[1739890724662,0.0001702,95881.0,95869.0,0.156462]
[1739890724898,0.0001702,95881.0,95873.0,0.004]
[1739890725103,0.0001702,95881.0,95873.0,0.10650365]
[1739890725327,0.0001702,95881.0,95874.0,0.10250365]
[1739890726097,0.1566142,95881.0,95874.0,0.10250365]
[1739890726693,0.0001702,95881.0,95874.0,0.10250365]
[1739890727320,0.0001702,95881.0,95874.0,0.10650365]
[1739890727742,0.0001702,95881.0,95874.0,0.13801591]
[1739890728095,0.1566132,95881.0,95874.0,0.10650365]
[1739890728311,0.208594,95880.0,95874.0,0.10650365]
[1739890728541,0.156448,95878.0,95874.0,0.10650365]
[1739890728739,0.0001702,95881.0,95874.0,0.10650365]
[1739890729167,0.0001702,95881.0,95875.0,0.01065037]
[1739890729368,0.0001702,95881.0,95876.0,0.10250365]
[1739890729776,0.0001702,95881.0,95877.0,0.00708913]
[1739890729982,0.0001702,95881.0,95880.0,0.156445]
[1739890730183,0.0001702,95881.0,95880.0,0.25894865]
[1739890730399,0.0001702,95881.0,95880.0,0.33445882]
[1739890731575,0.0001702,95881.0,95880.0,0.27303045]
[1739890731777,0.0001702,95881.0,95880.0,0.26603045]
[1739890732186,0.0001702,95881.0,95880.0,0.27303045]
[1739890734918,0.9250672,95881.0,95880.0,0.0140818]
[1739890735113,1.6075532,95881.0,95880.0,0.007]
[1739890735314,5.22770353,95881.0,95880.0,0.007]
[1739890735527,4.50813053,95881.0,95880.0,0.007]
[1739890736115,0.173,95880.0,95840.0,0.0001703]
[1739890736326,0.156479,95859.0,95840.0,0.0001703]
[1739890736919,1.99203572,95859.0,95840.0,0.0001703]
[1739890737131,0.909153,95859.0,95841.0,0.156507]
[1739890737329,0.843819,95859.0,95840.0,0.0001703]
[1739890737538,0.588851,95859.0,95840.0,0.0001703]
[1739890738477,0.588851,95859.0,95858.0,0.0043404]
[1739890738855,0.15,95869.0,95858.0,0.0043404]
[1739890739063,1.003921,95869.0,95858.0,0.0043404]
[1739890739293,0.15,95867.0,95858.0,0.0043404]
[1739890739495,0.156479,95859.0,95858.0,0.0043404]
[1739890740518,0.55674,95859.0,95858.0,0.0043404]
[1739890740715,1.174646,95859.0,95858.0,0.0043404]
[1739890740913,1.212751,95859.0,95858.0,0.0043404]
[1739890741114,2.0674763,95859.0,95858.0,0.0043404]
[1739890741287,2.0674763,95859.0,95840.0,0.0001703]
[1739890741288,0.156509,95841.0,95840.0,0.0001703]
[1739890742157,0.783545,95841.0,95840.0,0.0001703]
[1739890742307,0.156509,95841.0,95840.0,0.0001703]
[1739890742835,0.15780872,95841.0,95840.0,0.0001703]
[1739890743457,0.15780872,95841.0,95840.0,0.0021703]
[1739890744075,0.156509,95841.0,95840.0,0.0021703]
[1739890745104,0.45433159,95859.0,95840.0,0.0021703]
[1739890745306,0.156502,95846.0,95840.0,0.0021703]
[1739890745507,0.208661,95850.0,95840.0,0.0021703]
[1739890745751,0.208668,95846.0,95840.0,0.0021703]
[1739890745957,0.208661,95850.0,95840.0,0.0021703]
[1739890746166,0.311467,95849.0,95840.0,0.0001703]
[1739890746376,0.156508,95842.0,95840.0,0.0001703]
[1739890746584,0.156509,95841.0,95840.0,0.0001703]
[1739890747004,0.15780872,95841.0,95840.0,0.0001703]
[1739890747822,0.156509,95841.0,95840.0,0.0001703]
[1739890748454,0.15780872,95841.0,95840.0,0.0001703]
[1739890748679,0.156509,95841.0,95840.0,0.0001703]
[1739890748885,0.156509,95841.0,95840.0,0.0021703]
[1739890750411,0.33080872,95841.0,95840.0,0.0021703]
[1739890750695,1.22830903,95841.0,95840.0,0.0021703]
[1739890750896,1.15006703,95841.0,95840.0,0.0021703]
[1739890751102,0.17286503,95841.0,95840.0,0.0001703]
[1739890751310,0.17386503,95841.0,95840.0,0.0001703]
[1739890751731,0.17286503,95841.0,95840.0,0.0001703]
[1739890751951,0.17516475,95841.0,95840.0,0.0001703]
[1739890752369,0.19716475,95841.0,95840.0,0.0001703]
[1739890752569,0.33080872,95841.0,95840.0,0.0001703]
[1739890752780,1.746299,95841.0,95840.0,0.0001703]
[1739890752986,1.73296,95841.0,95840.0,0.0001703]
[1739890753389,1.615833,95841.0,95840.0,0.0001703]
[1739890753594,1.71833665,95841.0,95840.0,0.0001703]
[1739890754282,0.306517,95836.0,95833.0,0.0003402]
[1739890754490,0.329546,95818.0,95800.0,0.1]
[1739890754708,0.3625006,95818.0,95800.0,0.1]
[1739890755155,4.9778956,95818.0,95800.0,0.1]
[1739890755584,4.99904698,95818.0,95800.0,0.1]
[1739890755831,5.18291814,95818.0,95800.0,0.1]
[1739890756049,5.26226197,95818.0,95800.0,0.1]
[1739890756296,5.26754967,95818.0,95800.0,0.1]
[1739890756513,4.81132967,95818.0,95800.0,0.1]
[1739890756730,4.83256836,95818.0,95800.0,0.1]
[1739890757771,0.8181276,95818.0,95800.0,0.1]
[1739890757976,0.44322891,95818.0,95800.0,0.1]
[1739890758188,0.32774121,95818.0,95800.0,0.1]
[1739890758619,1.47204121,95818.0,95800.0,0.1]
[1739890758849,0.93335621,95818.0,95800.0,0.1]
[1739890759052,0.87952621,95818.0,95800.0,0.1]
[1739890759269,0.58126021,95818.0,95800.0,0.1]
[1739890759925,0.65194351,95818.0,95800.0,0.1]
[1739890760338,0.67494351,95818.0,95800.0,0.1]
[1739890760859,1.27132951,95818.0,95800.0,0.1]
[1739890761292,1.23720151,95818.0,95800.0,0.1]
[1739890761532,0.93467951,95818.0,95800.0,0.1]
[1739890761758,3.94352821,95818.0,95800.0,0.1]
[1739890762000,3.59884321,95818.0,95800.0,0.1]
[1739890762191,2.12407721,95818.0,95800.0,0.1]
[1739890762385,2.08100221,95818.0,95800.0,0.1]
[1739890763040,2.21880396,95818.0,95800.0,0.1]
[1739890763255,0.156574,95801.0,95800.0,0.1]
[1739890763463,5.258521,95801.0,95800.0,0.1]
[1739890763667,5.053328,95801.0,95800.0,0.1]
[1739890764143,5.15583165,95801.0,95800.0,0.1]
[1739890764484,5.053328,95801.0,95800.0,0.102]
[1739890764695,5.07460275,95801.0,95800.0,0.102]
[1739890764896,5.07460275,95801.0,95800.0,0.1]
[1739890765101,5.07660275,95801.0,95800.0,0.1]
[1739890765322,3.3644984,95801.0,95800.0,0.1]
[1739890765764,3.5939984,95801.0,95800.0,0.1]
[1739890765963,3.7919984,95801.0,95800.0,0.1]
[1739890766621,3.60835973,95801.0,95800.0,0.1001703]
[1739890767773,3.61035973,95801.0,95800.0,0.1001703]
[1739890768180,3.60835973,95801.0,95800.0,0.1001703]
[1739890768387,0.156605,95782.0,95781.0,0.00024021]
[1739890768595,3.950604,95782.0,95781.0,0.00024021]
[1739890768800,4.013378,95782.0,95781.0,0.00024021]
[1739890769276,4.11588165,95782.0,95781.0,0.00024021]
[1739890769477,0.156613,95777.0,95744.0,0.0768702]
[1739890769775,8.30732588,95777.0,95744.0,0.0768702]
[1739890769976,9.62022816,95777.0,95744.0,0.0768702]
[1739890770327,9.62022816,95777.0,95744.0,0.0001702]
[1739890770532,0.156636,95763.0,95744.0,0.0001702]
[1739890770737,3.58352842,95763.0,95744.0,0.0001702]
[1739890770941,4.20500521,95763.0,95744.0,0.0001702]
[1739890771152,6.48561886,95763.0,95744.0,0.0001702]
[1739890771357,7.59023067,95763.0,95744.0,0.0001702]
[1739890771568,8.05944767,95763.0,95744.0,0.0001702]
[1739890771776,0.00521452,95745.0,95721.0,0.0001702]
[1739890771981,0.156703,95722.0,95721.0,0.0001702]
[1739890772185,2.32854872,95722.0,95721.0,0.0001702]
[1739890772394,3.79369,95722.0,95721.0,0.0001702]
[1739890772609,4.19730351,95722.0,95721.0,0.0001702]
[1739890772834,4.13538951,95722.0,95721.0,0.0001702]
[1739890773042,3.08828177,95722.0,95721.0,0.00060918]
[1739890773246,2.73247363,95722.0,95721.0,0.00060918]
[1739890773867,2.70030612,95722.0,95721.0,0.00060918]
[1739890774291,2.80280977,95722.0,95721.0,0.00060918]
[1739890774731,2.83497728,95722.0,95721.0,0.00060918]
[1739890774923,2.83384493,95722.0,95721.0,0.00060918]
[1739890775453,2.56668141,95722.0,95721.0,0.00060918]
[1739890775653,0.66320041,95722.0,95721.0,0.00260918]
[1739890775859,0.66420041,95722.0,95721.0,0.00260918]
[1739890776105,0.66320041,95722.0,95721.0,0.00060918]
[1739890776738,0.19425541,95722.0,95721.0,0.00060918]
[1739890776943,0.03755241,95722.0,95721.0,0.00060918]
[1739890777673,0.02117712,95722.0,95721.0,0.00060918]
[1739890778079,0.156697,95727.0,95721.0,0.00060918]
[1739890778214,0.208925,95728.0,95721.0,0.00060918]
[1739890778415,0.01637284,95733.0,95721.0,0.00060918]
[1739890778416,0.02143309,95729.0,95721.0,0.00060918]
[1739890778619,0.208916,95732.0,95721.0,0.00060918]
[1739890778853,0.156695,95727.0,95721.0,0.00060918]
[1739890779046,0.156697,95727.0,95721.0,0.00060918]
[1739890779278,0.02130413,95729.0,95721.0,0.00060918]
[1739890779424,0.208922,95730.0,95721.0,0.00060918]
[1739890779606,0.156699,95725.0,95721.0,0.00060918]
[1739890779814,0.156696,95727.0,95721.0,0.00060918]
[1739890780038,0.1567,95724.0,95721.0,0.00060918]
[1739890780244,0.00129972,95729.0,95721.0,0.00060918]
[1739890780456,0.157703,95722.0,95721.0,0.00060918]
[1739890780861,0.156703,95722.0,95721.0,0.00060918]
[1739890781269,0.15800272,95722.0,95721.0,0.00060918]
[1739890781488,1.151357,95722.0,95721.0,0.00060918]
[1739890781685,1.021059,95722.0,95721.0,0.00060918]
[1739890782494,1.189413,95722.0,95721.0,0.00060918]
[1739890782807,5.01466,95722.0,95721.0,0.00060918]
[1739890783009,5.214595,95722.0,95721.0,0.00060918]
[1739890783214,5.135486,95722.0,95721.0,0.00260918]
[1739890783689,5.135486,95722.0,95721.0,0.00060918]
[1739890783888,4.958052,95722.0,95721.0,0.00060918]